fUSD/lending_fUSD_20260408
["ID","MTS","AMOUNT","RATE_DAILY","PERIOD"]
[420058491,1775639447963,-181.08010149,0.00015199,2]
[420058492,1775639447973,-1235.18214925,0.00015199,2]
[420058493,1775639447983,-623.58710448,0.00015199,2]
[420058494,1775639448000,-200.0,0.00015199,2]
[420058495,1775639448011,-500.0,0.00015199,2]
[420058496,1775639448021,-8260.13072239,0.00015199,2]
[420058497,1775639448031,-1000.0,0.00015199,2]
[420058498,1775639448041,-1000.0,0.00015199,2]
[420058499,1775639448051,-1000.0,0.00015199,2]
[420058500,1775639448062,-1000.0,0.00015199,2]
[420058501,1775639448072,-1000.0,0.00015199,2]
[420058502,1775639448083,-1000.0,0.00015199,2]
[420058503,1775639448093,-151.0,0.00015199,2]
[420058504,1775639448104,-1000.0,0.00015199,2]
[420058505,1775639448114,-1000.0,0.00015199,2]
[420058506,1775639448125,-3000.0,0.00015199,2]
[420058507,1775639448135,-1000.0,0.00015199,2]
[420058508,1775639448145,-3000.0,0.00015199,2]
[420058509,1775639448156,-338.41058093,0.00015199,2]
[420058510,1775639448166,-3000.0,0.00015199,2]
[420058511,1775639448176,-160.62835242,0.00015199,2]
[420058512,1775639448186,-3000.0,0.00015199,2]
[420058513,1775639448196,-2620.91593184,0.00015199,2]
[420058514,1775639448206,-743.50770149,0.00015199,2]
[420058515,1775639448216,-174.61919141,0.00015199,2]
[420058516,1775639448226,-599.60298507,0.00015199,2]
[420058517,1775639448237,-170.0,0.00015199,2]
[420058518,1775639448247,-170.0,0.00015199,2]
[420058519,1775639448257,-170.0,0.00015199,2]
[420058520,1775639448268,-170.0,0.00015199,2]
[420058521,1775639448277,-170.0,0.00015199,2]
[420058522,1775639448287,-170.0,0.00015199,2]
[420058523,1775639448298,-170.0,0.00015199,2]
[420058524,1775639448308,-170.0,0.00015199,2]
[420058525,1775639448318,-170.0,0.00015199,2]
[420058526,1775639448328,-170.0,0.00015199,2]
[420058527,1775639448338,-170.0,0.00015199,2]
[420058528,1775639448348,-170.0,0.00015199,2]
[420058529,1775639448358,-170.0,0.00015199,2]
[420058530,1775639448368,-170.0,0.00015199,2]
[420058531,1775639448378,-170.0,0.00015199,2]
[420058532,1775639448388,-150.0,0.000152,2]
[420058533,1775639448398,-150.0,0.000152,2]
[420058534,1775639448407,-150.0,0.000152,2]
[420058535,1775639448417,-150.0,0.000152,2]
[420058536,1775639448427,-150.0,0.000152,2]
[420058537,1775639448437,-150.0,0.000152,2]
[420058538,1775639448447,-150.0,0.000152,2]
[420058539,1775639448457,-2010.0,0.000152,2]
[420058540,1775639448468,-150.0,0.00015213,2]
[420058541,1775639448479,-150.0,0.0001522,2]
[420058542,1775639448497,-150.0,0.00015222,2]
[420058543,1775639448508,-150.0,0.00015231,2]
[420058544,1775639448519,-150.0,0.00015235,2]
[420058545,1775639448530,-150.0,0.00015238,2]
[420058546,1775639448542,-150.0,0.00015239,2]
[420058547,1775639448553,-150.0,0.0001524,2]
[420058548,1775639448563,-150.0,0.00015244,2]
[420058549,1775639448574,-500.0,0.00015254,2]
[420058550,1775639448584,-8565.75555911,0.00015254,2]
[420058551,1775639448595,-151.0,0.00015254,2]
[420058552,1775639448605,-507.0,0.00015258,3]
[420058553,1775639448616,-150.0,0.00015259,2]
[420058554,1775639448626,-307687.3724848,0.0001526,2]
[420058555,1775639448636,-150.0,0.00015262,2]
[420058556,1775639448646,-150.0,0.00015262,2]
[420058557,1775639448658,-150.0,0.00015266,2]
[420058558,1775639448668,-150.0,0.00015267,2]
[420058559,1775639448679,-150.0,0.0001527,2]
[420058560,1775639448689,-500.0,0.00015273,2]
[420058561,1775639448700,-500.0,0.00015273,2]
[420058562,1775639448710,-500.0,0.00015273,2]
[420058563,1775639448720,-500.0,0.00015273,2]
[420058564,1775639448731,-150.0,0.00015273,2]
[420058565,1775639448743,-150.0,0.0001528,2]
[420058566,1775639448755,-150.0,0.00015289,2]
[420058567,1775639448766,-150.0,0.00015292,2]
[420058568,1775639448776,-150.0,0.00015292,2]
[420058569,1775639448787,-150.0,0.00015298,2]
[420058570,1775639448797,-150.0,0.00015304,2]
[420058571,1775639448808,-500.0,0.00015309,2]
[420058572,1775639448819,-2694.11375725,0.00015309,2]
[420058573,1775639448830,-151.0,0.00015309,2]
[420058574,1775639448840,-150.0,0.00015311,2]
[420058575,1775639448851,-150.0,0.00015314,2]
[420058576,1775639448862,-150.0,0.00015318,2]
[420058577,1775639448872,-150.0,0.0001532,2]
[420058578,1775639448883,-150.0,0.00015323,2]
[420058579,1775639448894,-150.0,0.00015333,2]
[420058580,1775639448905,-150.0,0.00015337,2]
[420058581,1775639448915,-150.0,0.00015339,2]
[420058582,1775639448926,-987.75,0.00015342,2]
[420058583,1775639448936,-1951.88193642,0.00015342,2]
[420058584,1775639448947,-2000.0,0.00015342,2]
[420058585,1775639448958,-2000.0,0.00015342,2]
[420058586,1775639448969,-2000.0,0.00015342,2]
[420058587,1775639448979,-2000.0,0.00015342,2]
[420058588,1775639448993,-2000.0,0.00015342,2]
[420058589,1775639449005,-150.0,0.00015344,2]
[420058590,1775639449015,-150.0,0.00015345,2]
[420058591,1775639449026,-150.0,0.00015354,2]
[420058592,1775639449037,-150.0,0.00015356,2]
[420058593,1775639449048,-1573.0,0.00015358,2]
[420058594,1775639449059,-150.0,0.0001536,2]
[420058595,1775639449069,-500.0,0.00015364,2]
[420058596,1775639449082,-151.0,0.00015364,2]
[420058597,1775639449093,-150.0,0.0001537,2]
[420058598,1775639449104,-150.0,0.00015374,2]
[420058599,1775639449114,-150.0,0.00015376,2]
[420058600,1775639449126,-150.0,0.00015378,2]
[420058601,1775639449137,-150.0,0.00015385,2]
[420058602,1775639449148,-150.0,0.00015385,2]
[420058603,1775639449158,-150.0,0.0001539,2]
[420058604,1775639449169,-150.0,0.00015397,2]
[420058605,1775639449181,-150.0,0.000154,2]
[420058606,1775639449191,-150.0,0.000154,2]
[420058607,1775639449202,-150.0,0.00015409,2]
[420058608,1775639449213,-150.0,0.00015415,2]
[420058609,1775639449224,-150.0,0.00015415,2]
[420058610,1775639449235,-150.0,0.00015418,2]
[420058611,1775639449245,-500.0,0.00015419,2]
[420058612,1775639449256,-151.0,0.00015419,2]
[420058613,1775639449267,-150.0,0.00015422,2]
[420058614,1775639449277,-150.0,0.00015423,2]
[420058615,1775639449288,-150.0,0.0001544,2]
[420058616,1775639449299,-150.0,0.00015443,2]
[420058617,1775639449310,-150.0,0.00015444,2]
[420058618,1775639449320,-150.0,0.00015446,2]
[420058619,1775639449330,-150.0,0.00015449,2]
[420058620,1775639449341,-150.0,0.00015454,2]
[420058621,1775639449351,-150.0,0.00015467,2]
[420058622,1775639449362,-150.0,0.00015467,2]
[420058623,1775639449375,-3034.76,0.00015471,2]
[420058624,1775639449385,-863.61,0.00015471,2]
[420058625,1775639449396,-1674.23,0.00015471,2]
[420058626,1775639449406,-500.0,0.00015474,2]
[420058627,1775639449417,-151.0,0.00015474,2]
[420058628,1775639449427,-150.0,0.00015475,2]
[420058629,1775639449437,-150.0,0.00015477,2]
[420058630,1775639449449,-150.0,0.00015478,2]
[420058631,1775639449460,-150.0,0.0001548,2]
[420058632,1775639449470,-150.0,0.00015489,2]
[420058633,1775639449480,-150.0,0.00015491,2]
[420058634,1775639449491,-150.0,0.00015493,2]
[420058635,1775639449501,-254.1999,0.000155,2]
[420058636,1775639449511,-150.0,0.00015502,2]
[420058637,1775639449521,-150.0,0.00015508,2]
[420058638,1775639449532,-150.0,0.00015508,2]
[420058639,1775639449543,-150.0,0.00015511,2]
[420058640,1775639449554,-150.0,0.00015513,2]
[420058641,1775639449565,-150.0,0.0001552,2]
[420058642,1775639449576,-150.0,0.00015528,2]
[420058643,1775639449587,-500.0,0.00015529,2]
[420058644,1775639449597,-151.0,0.00015529,2]
[420058645,1775639449608,-150.0,0.00015532,2]
[420058646,1775639449619,-150.0,0.00015533,2]
[420058647,1775639449629,-150.0,0.00015538,2]
[420058648,1775639449640,-150.0,0.00015543,2]
[420058649,1775639449651,-150.0,0.00015548,2]
[420058650,1775639449672,-150.0,0.00015554,2]
[420058651,1775639449689,-150.0,0.00015556,2]
[420058652,1775639449700,-858.6473353,0.00015558,2]
[420058653,1775639449712,-150.0,0.0001556,2]
[420058654,1775639449722,-150.0,0.00015564,2]
[420058655,1775639449734,-150.0,0.00015569,2]
[420058656,1775639449745,-150.0,0.00015571,2]
[420058657,1775639449757,-150.0,0.00015578,2]
[420058658,1775639449768,-150.0,0.0001558,2]
[420058659,1775639449780,-150.0,0.00015583,2]
[420058660,1775639449791,-500.0,0.00015584,2]
[420058661,1775639449802,-151.0,0.00015584,2]
[420058662,1775639449813,-350.0,0.00015596,2]
[420058663,1775639449824,-150.0,0.000156,2]
[420058664,1775639449835,-150.0,0.000156,2]
[420058665,1775639449846,-150.0,0.000156,2]
[420058666,1775639449858,-150.0,0.00015607,2]
[420058667,1775639449868,-150.0,0.0001561,2]
[420058668,1775639449879,-150.0,0.00015617,2]
[420058669,1775639449891,-150.0,0.00015619,2]
[420058670,1775639449902,-150.0,0.00015622,2]
[420058671,1775639449913,-150.0,0.00015631,2]
[420058672,1775639449924,-150.0,0.00015631,2]
[420058673,1775639449936,-150.0,0.00015633,2]
[420058674,1775639449946,-150.0,0.00015636,2]
[420058675,1775639449958,-500.0,0.00015639,2]
[420058676,1775639449969,-151.0,0.00015639,2]
[420058677,1775639449980,-150.0,0.0001564,2]
[420058678,1775639449992,-150.0,0.00015644,2]
[420058679,1775639450003,-150.0,0.00015649,2]
[420058680,1775639450013,-150.0,0.00015652,2]
[420058681,1775639450024,-150.0,0.00015659,2]
[420058682,1775639450035,-150.0,0.00015662,2]
[420058683,1775639450047,-150.0,0.00015667,2]
[420058684,1775639450058,-526.0391609,0.00015668,2]
[420058685,1775639450069,-672.69163722,0.0001568,2]
[420058686,1775639450080,-150.0,0.0001568,2]
[420058687,1775639450092,-150.0,0.00015685,2]
[420058688,1775639450103,-150.0,0.00015687,2]
[420058689,1775639450114,-150.0,0.00015688,2]
[420058690,1775639450125,-150.0,0.00015689,2]
[420058691,1775639450135,-150.0,0.00015692,2]
[420058692,1775639450146,-500.0,0.00015694,2]
[420058693,1775639450156,-151.0,0.00015694,2]
[420058694,1775639450171,-150.0,0.00015695,2]
[420058695,1775639450182,-830.65684136,0.000157,2]
[420058696,1775639450193,-150.0,0.00015709,2]
[420058697,1775639450204,-150.0,0.00015711,2]
[420058698,1775639450215,-150.0,0.00015711,2]
[420058699,1775639450227,-150.0,0.0001572,2]
[420058700,1775639450238,-150.0,0.00015722,2]
[420058701,1775639450249,-350.0,0.00015722,2]
[420058702,1775639450261,-150.0,0.00015723,2]
[420058703,1775639450271,-150.0,0.00015727,2]
[420058704,1775639450282,-150.0,0.00015733,2]
[420058705,1775639450293,-1000.0,0.00015735,2]
[420058706,1775639450305,-150.0,0.00015738,2]
[420058707,1775639450315,-350.0,0.00015739,2]
[420058708,1775639450327,-187.78006525,0.00015747,2]
[420058709,1775639450338,-1280.88388878,0.00015747,2]
[420058710,1775639450349,-200.0,0.00015747,2]
[420058711,1775639450359,-771.01748645,0.00015747,2]
[420058712,1775639450370,-181.08010149,0.00015747,2]
[420058713,1775639450380,-591.41950389,0.00015747,2]
[420058714,1775639450391,-500.0,0.00015749,2]
[420058715,1775639450402,-151.0,0.00015749,2]
[420058716,1775639450412,-150.0,0.00015754,2]
[420058717,1775639450422,-150.0,0.00015754,2]
[420058718,1775639450434,-150.0,0.00015756,2]
[420058719,1775639450445,-150.0,0.00015757,2]
[420058720,1775639450456,-277.0,0.00015759,3]
[420058721,1775639450467,-150.0,0.0001576,2]
[420058722,1775639450478,-150.0,0.00015764,2]
[420058723,1775639450489,-150.0,0.00015766,2]
[420058724,1775639450501,-150.0,0.00015771,2]
[420058725,1775639450512,-150.0,0.00015778,2]
[420058726,1775639450524,-1500.0,0.00015778,2]
[420058727,1775639450535,-1500.0,0.00015778,2]
[420058728,1775639450546,-150.0,0.00015782,2]
[420058729,1775639450556,-150.0,0.00015785,2]
[420058730,1775639450568,-150.0,0.0001579,2]
[420058731,1775639450578,-150.0,0.00015791,2]
[420058732,1775639450589,-5000.0,0.000158,2]
[420058733,1775639450600,-150.0,0.000158,2]
[420058734,1775639450610,-150.0,0.000158,2]
[420058735,1775639450620,-500.0,0.00015804,2]
[420058736,1775639450631,-151.0,0.00015804,2]
[420058737,1775639450642,-150.0,0.00015805,2]
[420058738,1775639450653,-500.0,0.00015808,2]
[420058739,1775639450664,-500.0,0.00015808,2]
[420058740,1775639450676,-396.4808442,0.00015808,2]
[420058741,1775639450688,-150.0,0.00015815,2]
[420058742,1775639450700,-150.0,0.00015816,2]
[420058743,1775639450711,-1000.0,0.00015821,2]
[420058744,1775639450722,-1000.0,0.00015821,2]
[420058745,1775639450733,-1000.0,0.00015821,2]
[420058746,1775639450745,-673.33118241,0.00015821,2]
[420058747,1775639450757,-150.0,0.00015822,2]
[420058748,1775639450769,-150.0,0.00015826,2]
[420058749,1775639450781,-150.0,0.0001584,2]
[420058750,1775639450792,-2000.0,0.0001584,2]
[420058751,1775639450804,-2000.0,0.0001584,2]
[420058752,1775639450816,-150.0,0.00015843,2]
[420058753,1775639450827,-150.0,0.00015844,2]
[420058754,1775639450839,-150.0,0.00015844,2]
[420058755,1775639450850,-150.0,0.00015846,2]
[420058756,1775639450861,-150.0,0.00015848,2]
[420058757,1775639450872,-2000.0,0.0001585,2]
[420058758,1775639450883,-150.0,0.00015855,2]
[420058759,1775639450894,-500.0,0.00015859,2]
[420058760,1775639450905,-151.0,0.00015859,2]
[420058761,1775639450915,-163.8001,0.0001586,2]
[420058762,1775639450927,-150.0,0.00015861,2]
[420058763,1775639450939,-1000.0,0.00015863,2]
[420058764,1775639451330,-150.0,0.00015867,2]
[420058765,1775639451342,-150.0,0.00015869,2]
[420058766,1775639451352,-163.8001,0.0001587,2]
[420058767,1775639451362,-150.0,0.00015872,2]
[420058768,1775639451373,-500.0,0.00015872,2]
[420058769,1775639451384,-500.0,0.00015872,2]
[420058770,1775639451395,-150.0,0.00015877,2]
[420058771,1775639451406,-150.0,0.00015877,2]
[420058772,1775639451416,-150.0,0.0001588,2]
[420058773,1775639451427,-150.0,0.00015883,2]
[420058774,1775639451438,-150.0,0.00015889,2]
[420058775,1775639451450,-500.0,0.0001589,2]
[420058776,1775639451460,-500.0,0.0001589,2]
[420058777,1775639451471,-500.0,0.0001589,2]
[420058778,1775639451481,-194.91667222,0.0001589,2]
[420058779,1775639451491,-2000.0,0.0001589,2]
[420058780,1775639451503,-2500.0,0.0001589,2]
[420058781,1775639451513,-784.48454081,0.0001589,2]
[420058782,1775639451523,-2500.0,0.0001589,2]
[420058783,1775639451534,-2500.0,0.0001589,2]
[420058784,1775639451544,-2500.0,0.0001589,2]
[420058785,1775639451555,-2016.0,0.00015893,2]
[420058786,1775639451567,-150.0,0.00015895,2]
[420058787,1775639451580,-150.0,0.00015896,2]
[420058788,1775639451591,-1000.0,0.00015898,2]
[420058789,1775639451603,-1900.0,0.000159,2]
[420058790,1775639451614,-836.45900119,0.000159,2]
[420058791,1775639451626,-184.01842302,0.000159,2]
[420058792,1775639451637,-290.6382491,0.000159,2]
[420058793,1775639451649,-2313.07312096,0.000159,2]
[420058794,1775639451661,-1068.9578223,0.000159,2]
[420058795,1775639451672,-1518.0,0.000159,5]
[420058796,1775639451683,-2000.0,0.000159,2]
[420058797,1775639451695,-150.0,0.00015908,2]
[420058798,1775639451708,-150.0,0.00015911,2]
[420058799,1775639451719,-500.0,0.00015914,2]
[420058800,1775639451732,-151.0,0.00015914,2]
[420058801,1775639451743,-150.0,0.0001592,2]
[420058802,1775639451755,-150.0,0.00015921,2]
[420058803,1775639451767,-150.0,0.00015922,2]
[420058804,1775639451779,-150.0,0.00015924,2]
[420058805,1775639451790,-150.0,0.00015927,2]
[420058806,1775639451801,-150.0,0.0001593,2]
[420058807,1775639451813,-150.0,0.00015933,2]
[420058808,1775639451824,-150.0,0.00015938,2]
[420058809,1775639451834,-350.0,0.00015942,2]
[420058810,1775639451845,-150.0,0.00015948,2]
[420058811,1775639451857,-150.0,0.00015956,2]
[420058812,1775639451867,-150.0,0.0001596,2]
[420058813,1775639451878,-150.0,0.00015961,2]
[420058814,1775639451888,-150.0,0.00015965,2]
[420058815,1775639451899,-500.0,0.00015969,2]
[420058816,1775639451910,-151.0,0.00015969,2]
[420058817,1775639451922,-150.0,0.00015969,2]
[420058818,1775639451933,-150.0,0.00015974,2]
[420058819,1775639451943,-1000.0,0.00015974,2]
[420058820,1775639451955,-150.0,0.00015978,2]
[420058821,1775639451965,-1000.0,0.00015987,2]
[420058822,1775639451975,-427.87138688,0.0001599,2]
[420058823,1775639451985,-299.0,0.00015995,2]
[420058824,1775639451997,-151.0,0.00015997,2]
[420058825,1775639452007,-151.0,0.00015997,2]
[420058826,1775639452018,-151.0,0.00015997,2]
[420058827,1775639452029,-666.0,0.00015999,2]
[420058828,1775639452039,-155.355,0.00015999,2]
[420058829,1775639452050,-153.03603175,0.00016,2]
[420058830,1775639452060,-254.97243642,0.00016,2]
[420058831,1775639452071,-240.76039255,0.00016,2]
[420058832,1775639452082,-257.21753865,0.00016,2]
[420058833,1775639452092,-246.14760097,0.00016,2]
[420058834,1775639452103,-299.8368581,0.00016,2]
[420058835,1775639452114,-265.82430715,0.00016,2]
[420058836,1775639452125,-235.51154759,0.00016,2]
[420058837,1775639452135,-253.01547596,0.00016,2]
[420058838,1775639452147,-260.08916634,0.00016,2]
[420058839,1775639452157,-175.09773323,0.00016,2]
[420058840,1775639452168,-2361447.55241508,0.00016,2]
[420058841,1775639453798,-537.65045001,0.00016,2]
[420058842,1775639453811,-4522.37343716,0.00016,2]
[420058843,1775639453822,-524.0,0.00016,2]
[420058844,1775639454172,-3272.23205387,0.00013329,2]
[420058845,1775639454182,-277.26214583,0.00015044,2]
[420058846,1775639455027,-1.0044151,0.00015044,2]
[420058847,1775639455040,-1621.73343907,0.00015044,2]
[420058848,1775639455050,-1900.0,0.00015044,2]
[420058849,1775639455059,-3943.06998455,0.00016,2]
[420058850,1775639455072,-3319.34564539,0.00016,2]
[420058851,1775639455084,-1741.12838713,0.00016,2]
[420058852,1775639455096,-48906.80582038,0.00016,2]
[420058853,1775639455109,-8109.88866384,0.00016,2]
[420058854,1775639455228,-1900.0,0.00015044,2]
[420058855,1775639455238,-449599.9750906,0.00016,2]
[420058856,1775639455250,-635.19657638,0.00016,2]
[420058857,1775639455262,-91279.8694794,0.00016,2]
[420058858,1775639455274,-734.95616061,0.00016,2]
[420058859,1775639455531,-855.48740589,0.00015044,2]
[420058860,1775639455542,-520.9046475,0.00015044,2]
[420058861,1775639455556,-523.60794661,0.00015044,2]
[420058862,1775639455565,-1900.0,0.00015044,2]
[420058863,1775639455575,-1906.98193361,0.00016,2]
[420058864,1775639455622,-1900.0,0.00015044,2]
[420058865,1775639455632,-1402.55053612,0.00016,2]
[420058866,1775639455669,-3939.183122,0.00016,2]
[420058867,1775639455686,-18549.29515646,0.00016,2]
[420058868,1775639455934,-1900.0,0.00015044,2]
[420058869,1775639455944,-1900.0,0.00015044,2]
[420058870,1775639455954,-1900.0,0.00015044,2]
[420058871,1775639455964,-12877.22757831,0.00016,2]
[420058872,1775639456014,-504.48956774,0.00016,2]
[420058873,1775639456026,-47235.6561694,0.00016,2]
[420058874,1775639456697,5000.01,9.889e-05,2]
[420058875,1775639456721,5000.01,9.889e-05,2]
[420058876,1775639501600,1200.0,9.822e-05,2]
[420058878,1775639528424,221.0,9.822e-05,3]
[420058879,1775639587224,210.0,9.822e-05,3]
[420058880,1775639645731,200.0,9.822e-05,3]
[420058881,1775639708078,190.0,9.822e-05,3]
[420058882,1775639715283,154.0,9.822e-05,3]
[420058884,1775639728383,380.48,9e-05,2]
[420058885,1775639760878,2500.0,9.78e-05,2]
[420058886,1775639769088,180.0,9.822e-05,3]
[420058887,1775639828350,185.0,9.822e-05,3]
[420058888,1775639880791,4579.53,9.78e-05,2]
[420058889,1775639880818,5420.47,9.78e-05,2]
[420058890,1775639886677,176.0,9.822e-05,3]
[420058891,1775639889504,-292.0,9.872e-05,2]
[420058892,1775639889531,-250.0,9.872e-05,2]
[420058893,1775639889558,-128.0,9.872e-05,2]
[420058894,1775639923888,2500.0,9.78e-05,2]
[420058895,1775639947584,167.0,9.822e-05,3]
[420058897,1775640015513,169.0,9.822e-05,3]
[420058898,1775640042867,850.01,9.822e-05,2]
[420058899,1775640067602,150.0,9.822e-05,3]
[420058900,1775640076034,426.0014,9.78e-05,2]
[420058901,1775640127062,141.5286,9.822e-05,3]
[420058902,1775640127088,8.4714,9.822e-05,3]
[420058903,1775640137382,1012.9504,9.78e-05,2]
[420058904,1775640184688,225.0,9.822e-05,3]
[420058905,1775640231924,695.9201,9.78e-05,2]
[420058906,1775640246865,228.0,9.822e-05,3]
[420058907,1775640247214,371.0,0.000105,30]
[420058908,1775640252127,273.13,4.992e-05,2]
[420058909,1775640252325,273.13,5.255e-05,2]
[420058910,1775640252521,273.13,5.518e-05,2]
[420058911,1775640252895,273.13,5.781e-05,2]
[420058912,1775640253297,273.13,6.043e-05,2]
[420058913,1775640253949,273.13,6.306e-05,2]
[420058914,1775640254017,273.13,6.569e-05,2]
[420058915,1775640254163,273.13,6.831e-05,2]
[420058916,1775640254211,273.13,7.094e-05,2]
[420058917,1775640254481,273.13,7.357e-05,2]
[420058918,1775640254552,273.13,7.62e-05,2]
[420058919,1775640254794,273.13,7.882e-05,2]
[420058920,1775640255056,273.13,8.145e-05,2]
[420058921,1775640255264,273.13,8.408e-05,2]
[420058922,1775640255455,273.13,8.671e-05,2]
[420058923,1775640255642,273.13,8.933e-05,2]
[420058924,1775640255838,273.13,9.196e-05,2]
[420058925,1775640256031,273.13,9.459e-05,2]
[420058926,1775640256229,273.13,9.722e-05,2]
[420058927,1775640307148,216.0,9.822e-05,3]
[420058928,1775640307780,155.0,9.822e-05,3]
[420058929,1775640316119,-1200.0,9.871e-05,2]
[420058930,1775640316142,-300.0,9.871e-05,2]
[420058931,1775640316165,-292.0,9.872e-05,2]
[420058932,1775640316189,-7983.48099723,9.872e-05,2]
[420058933,1775640316212,-224.51900277,9.872e-05,2]
[420058934,1775640326131,-25.48099723,9.872e-05,2]
[420058935,1775640326156,-410.3175,9.872e-05,2]
[420058936,1775640326181,-500.0,9.872e-05,2]
[420058937,1775640326205,-1200.0,9.873e-05,2]
[420058938,1775640326229,-150.0,9.879e-05,2]
[420058939,1775640326252,-500.0,9.879e-05,2]
[420058940,1775640326276,-386.0896306,9.879e-05,2]
[420058941,1775640326305,-548.28417975,9.879e-05,2]
[420058942,1775640326333,-548.28417975,9.879e-05,2]
[420058943,1775640326362,-548.28417975,9.879e-05,2]
[420058944,1775640326390,-548.28417975,9.879e-05,2]
[420058945,1775640326418,-548.28417975,9.879e-05,2]
[420058946,1775640326446,-548.28417975,9.879e-05,2]
[420058947,1775640326473,-548.28417975,9.879e-05,2]
[420058948,1775640326501,-548.28417975,9.879e-05,2]
[420058949,1775640326528,-548.28417975,9.879e-05,2]
[420058950,1775640326560,-548.28417975,9.879e-05,2]
[420058951,1775640326590,-548.28417975,9.879e-05,2]
[420058952,1775640326619,-548.28417975,9.879e-05,2]
[420058953,1775640326649,-248.70171517,9.879e-05,2]
[420058954,1775640335999,-299.58246458,9.879e-05,2]
[420058955,1775640336029,-548.28417975,9.879e-05,2]
[420058956,1775640336056,-548.28417975,9.879e-05,2]
[420058957,1775640336086,-548.28417975,9.879e-05,2]
[420058958,1775640336116,-548.28417975,9.879e-05,2]
[420058959,1775640336145,-548.28417975,9.879e-05,2]
[420058960,1775640336174,-548.28417975,9.879e-05,2]
[420058961,1775640336203,-548.28417975,9.879e-05,2]
[420058962,1775640336232,-548.28417975,9.879e-05,2]
[420058963,1775640336261,-548.28417975,9.879e-05,2]
[420058964,1775640336289,-548.28417975,9.879e-05,2]
[420058965,1775640336317,-548.28417975,9.879e-05,2]
[420058966,1775640336345,-548.28417975,9.879e-05,2]
[420058967,1775640336373,-548.28417975,9.879e-05,2]
[420058968,1775640336400,-548.28417975,9.879e-05,2]
[420058969,1775640336427,-548.28417975,9.879e-05,2]
[420058970,1775640336454,-548.28417975,9.879e-05,2]
[420058971,1775640336481,-548.28417975,9.879e-05,2]
[420058972,1775640336510,-379.58647967,9.879e-05,2]
[420058973,1775640344357,-168.69770008,9.879e-05,2]
[420058974,1775640344387,-548.28417975,9.879e-05,2]
[420058975,1775640344417,-548.28417975,9.879e-05,2]
[420058976,1775640344446,-548.28417975,9.879e-05,2]
[420058977,1775640344476,-548.28417975,9.879e-05,2]
[420058978,1775640344506,-548.28417975,9.879e-05,2]
[420058979,1775640344535,-548.28417975,9.879e-05,2]
[420058980,1775640344565,-548.28417975,9.879e-05,2]
[420058981,1775640344595,-548.28417975,9.879e-05,2]
[420058982,1775640344627,-548.28417975,9.879e-05,2]
[420058983,1775640344658,-548.28417975,9.879e-05,2]
[420058984,1775640344687,-548.28417975,9.879e-05,2]
[420058985,1775640344717,-548.28417975,9.879e-05,2]
[420058986,1775640344746,-548.28417975,9.879e-05,2]
[420058987,1775640344776,-548.28417975,9.879e-05,2]
[420058988,1775640344806,-548.28417975,9.879e-05,2]
[420058989,1775640344838,-548.28417975,9.879e-05,2]
[420058990,1775640344869,-548.28417975,9.879e-05,2]
[420058991,1775640344900,-510.47124417,9.879e-05,2]
[420058992,1775640354940,-153.43410661,9.88e-05,2]
[420058993,1775640354965,-215.54,9.88e-05,2]